bitfinex/quotes_BTCUSD_20240810
["timestamp","ask_amount","ask_price","bid_price","bid_amount"]
[1723266395244,1.58579923,60439.0,60438.0,0.0019141]
[1723266395458,1.615722,60439.0,60438.0,0.0029141]
[1723266396000,1.605722,60439.0,60438.0,0.0009141]
[1723266396237,1.605722,60439.0,60438.0,0.0019141]
[1723266396238,1.58956195,60439.0,60438.0,0.0019141]
[1723266396462,1.61456195,60439.0,60438.0,0.0029141]
[1723266398230,1.61056195,60439.0,60438.0,0.0019141]
[1723266398674,1.61456195,60439.0,60438.0,0.0029141]
[1723266399105,1.60556195,60439.0,60438.0,0.0009141]
[1723266399326,1.60556195,60439.0,60438.0,0.0019141]
[1723266399551,1.61456195,60439.0,60438.0,0.0029141]
[1723266399986,1.61056195,60439.0,60438.0,0.0019141]
[1723266400212,1.60950743,60439.0,60438.0,0.0019141]
[1723266400665,1.61450743,60439.0,60438.0,0.0029141]
[1723266402437,1.330309,60438.0,60437.0,0.009141]
[1723266402658,0.526384,60437.0,60436.0,0.0009141]
[1723266402820,1.69494566,60437.0,60436.0,0.0009141]
[1723266403025,1.71794566,60437.0,60436.0,0.0009141]
[1723266403681,1.684253,60437.0,60436.0,0.0009141]
[1723266403876,1.71795886,60437.0,60436.0,0.0009141]
[1723266404255,1.684253,60437.0,60436.0,0.0009141]
[1723266404455,1.71792054,60437.0,60436.0,0.0009141]
[1723266405528,1.72392054,60437.0,60436.0,0.0019141]
[1723266406365,1.72392054,60437.0,60436.0,0.0029141]
[1723266406366,1.72992054,60437.0,60436.0,0.0029141]
[1723266408208,1.39899754,60437.0,60436.0,0.0029141]
[1723266411328,1.39902949,60437.0,60436.0,0.0029141]
[1723266412395,1.78165255,60437.0,60436.0,0.0029141]
[1723266413213,1.78175255,60437.0,60436.0,0.0029141]
[1723266413416,1.72995249,60437.0,60436.0,0.0029141]
[1723266414875,1.7299932,60437.0,60436.0,0.0029141]
[1723266415300,1.696253,60437.0,60436.0,0.0029141]
[1723266415506,1.39907038,60437.0,60436.0,0.0029141]
[1723266416333,1.45080546,60437.0,60436.0,0.0029141]
[1723266417791,1.45080023,60437.0,60436.0,0.0029141]
[1723266417992,1.46795556,60437.0,60436.0,0.0029141]
[1723266418197,1.5446584,60437.0,60436.0,0.0029141]
[1723266418652,1.54472801,60437.0,60436.0,0.0029141]
[1723266420375,1.54472801,60437.0,60419.0,0.009141]
[1723266420376,0.01,60420.0,60419.0,0.009141]
[1723266420611,0.19927895,60420.0,60419.0,0.0226309]
[1723266420825,0.19927895,60420.0,60419.0,0.009141]
[1723266420826,0.54029495,60420.0,60419.0,0.009141]
[1723266421052,0.54029495,60420.0,60419.0,0.0226309]
[1723266421053,0.87131095,60420.0,60419.0,0.0226309]
[1723266421289,0.87131095,60420.0,60419.0,0.009141]
[1723266421738,1.20232695,60420.0,60419.0,0.009141]
[1723266421954,0.87131095,60420.0,60419.0,0.011141]
[1723266422176,0.87131095,60420.0,60419.0,0.012141]
[1723266422398,0.87131095,60420.0,60419.0,0.010141]
[1723266422617,1.21032695,60420.0,60419.0,0.010141]
[1723266422838,0.88531095,60420.0,60419.0,0.011141]
[1723266423059,1.21632695,60420.0,60419.0,0.011141]
[1723266423280,1.20832695,60420.0,60419.0,0.010141]
[1723266423502,1.21632695,60420.0,60419.0,0.011141]
[1723266424211,1.20632695,60420.0,60419.0,0.011141]
[1723266424440,0.88531095,60420.0,60419.0,0.011141]
[1723266424669,0.88522973,60420.0,60419.0,0.011141]
[1723266424884,1.21624573,60420.0,60419.0,0.011141]
[1723266425115,1.182556,60420.0,60419.0,0.011141]
[1723266425332,1.21622522,60420.0,60419.0,0.011141]
[1723266426216,1.20622522,60420.0,60419.0,0.011141]
[1723266426457,0.87520922,60420.0,60419.0,0.011141]
[1723266426893,1.20622522,60420.0,60419.0,0.011141]
[1723266427584,1.21622522,60420.0,60419.0,0.011141]
[1723266428035,1.20622522,60420.0,60419.0,0.011141]
[1723266428259,1.20622315,60420.0,60419.0,0.011141]
[1723266428508,1.21622315,60420.0,60419.0,0.011141]
[1723266429646,1.20622315,60420.0,60419.0,0.011141]
[1723266430575,1.21622315,60420.0,60419.0,0.011141]
[1723266430798,0.87520715,60420.0,60419.0,0.011141]
[1723266431776,0.85154,60420.0,60419.0,0.011141]
[1723266432012,0.88521681,60420.0,60419.0,0.011141]
[1723266432241,0.87522807,60420.0,60419.0,0.011141]
[1723266432674,1.20624407,60420.0,60419.0,0.011141]
[1723266432891,0.87522807,60420.0,60419.0,0.011141]
[1723266433354,0.88522807,60420.0,60419.0,0.011141]
[1723266436220,0.88528473,60420.0,60419.0,0.011141]
[1723266436425,1.21630073,60420.0,60419.0,0.011141]
[1723266436649,0.88528473,60420.0,60419.0,0.011141]
[1723266438543,1.21630073,60420.0,60419.0,0.011141]
[1723266438755,0.88528473,60420.0,60419.0,0.011141]
[1723266439409,1.21630073,60420.0,60419.0,0.011141]
[1723266439638,0.88525985,60420.0,60419.0,0.011141]
[1723266445289,1.27657585,60420.0,60419.0,0.011141]
[1723266445501,1.29657585,60420.0,60419.0,0.011141]
[1723266445726,1.37297585,60420.0,60419.0,0.011141]
[1723266447512,1.339256,60420.0,60419.0,0.011141]
[1723266447710,1.37305285,60420.0,60419.0,0.011141]
[1723266448473,1.23635285,60420.0,60419.0,0.011141]
[1723266448960,1.23637084,60420.0,60419.0,0.011141]
[1723266449409,1.2882039,60420.0,60419.0,0.011141]
[1723266452305,1.2882849,60420.0,60419.0,0.011141]
[1723266453600,0.9572689,60420.0,60419.0,0.011141]
[1723266454503,1.2882849,60420.0,60419.0,0.011141]
[1723266455846,1.22848903,60420.0,60419.0,0.011141]
[1723266456062,1.31430781,60420.0,60419.0,0.011141]
[1723266459526,0.90140154,60420.0,60419.0,0.011141]
[1723266459731,0.90140154,60420.0,60419.0,0.071141]
[1723266459987,1.0149038,60420.0,60419.0,0.071141]
[1723266460445,1.0149038,60420.0,60419.0,0.13999539]
[1723266460665,1.15697564,60420.0,60419.0,0.011141]
[1723266463053,1.15699969,60420.0,60419.0,0.011141]
[1723266464377,1.15699969,60420.0,60419.0,0.010141]
[1723266464378,1.14899969,60420.0,60419.0,0.010141]
[1723266464576,1.19855781,60420.0,60419.0,0.011141]
[1723266464830,1.20055781,60420.0,60419.0,0.010141]
[1723266465040,1.20063382,60420.0,60419.0,0.010141]
[1723266465240,1.19263382,60420.0,60419.0,0.009141]
[1723266465394,1.08235088,60420.0,60419.0,0.010141]
[1723266466005,1.08935088,60420.0,60419.0,0.011141]
[1723266466434,1.0148693,60420.0,60419.0,0.011141]
[1723266466864,1.08932049,60420.0,60419.0,0.011141]
[1723266469995,1.08932135,60420.0,60419.0,0.011141]
[1723266470836,1.34588616,60420.0,60419.0,0.011141]
[1723266471044,1.01487016,60420.0,60419.0,0.011141]
[1723266471251,1.08932135,60420.0,60419.0,0.011141]
[1723266471872,1.42033034,60420.0,60419.0,0.011141]
[1723266472089,1.08931434,60420.0,60419.0,0.011141]
[1723266472961,1.42033034,60420.0,60419.0,0.011141]
[1723266473807,1.42032364,60420.0,60419.0,0.011141]
[1723266474224,1.42035655,60420.0,60419.0,0.011141]
[1723266477843,1.08934055,60420.0,60419.0,0.011141]
[1723266478049,1.08914139,60420.0,60419.0,0.011141]
[1723266478260,1.61008386,60420.0,60419.0,0.011141]
[1723266478699,1.61008443,60420.0,60419.0,0.011141]
[1723266480039,1.59008443,60420.0,60419.0,0.011141]
[1723266480156,1.61008397,60420.0,60419.0,0.011141]
[1723266480349,1.67148397,60420.0,60419.0,0.011141]
[1723266481057,1.58570166,60420.0,60419.0,0.011141]
[1723266481298,1.67156103,60420.0,60419.0,0.011141]
[1723266481720,1.65156103,60420.0,60419.0,0.011141]
[1723266482342,1.46904924,60420.0,60419.0,0.011141]
[1723266482555,1.56837637,60420.0,60419.0,0.011141]
[1723266482760,1.45487637,60420.0,60419.0,0.011141]
[1723266482968,1.39772282,60420.0,60419.0,0.011141]
[1723266483177,1.39772401,60420.0,60419.0,0.011141]
[1723266485185,1.40772401,60420.0,60419.0,0.011141]
[1723266485762,1.39772401,60420.0,60419.0,0.011141]
[1723266486379,1.39754949,60420.0,60419.0,0.011141]
[1723266486577,1.05235806,60420.0,60419.0,0.011141]
[1723266486752,0.97564484,60420.0,60419.0,0.011141]
[1723266486954,1.08914484,60420.0,60419.0,0.011141]
[1723266487380,1.01463668,60420.0,60419.0,0.011141]
[1723266490448,0.98077387,60420.0,60419.0,0.011141]
[1723266490637,1.01463546,60420.0,60419.0,0.011141]
[1723266495023,1.01546746,60420.0,60419.0,0.011141]
[1723266495704,1.0154539,60420.0,60419.0,0.011141]
[1723266499148,1.01548531,60420.0,60419.0,0.011141]
[1723266503098,0.98160587,60420.0,60419.0,0.011141]
[1723266503297,1.0154988,60420.0,60419.0,0.011141]
[1723266503771,1.01549821,60420.0,60419.0,0.011141]
[1723266504459,1.06516039,60420.0,60419.0,0.011141]
[1723266504892,1.06516252,60420.0,60419.0,0.011141]
[1723266505101,1.01549821,60420.0,60419.0,0.011141]
[1723266507146,1.01548278,60420.0,60419.0,0.011141]
[1723266509530,1.34649878,60420.0,60419.0,0.011141]
[1723266509735,1.01548278,60420.0,60419.0,0.011141]
[1723266512710,0.90198278,60420.0,60419.0,0.011141]
[1723266512882,1.01548278,60420.0,60419.0,0.011141]
[1723266515495,1.01529946,60420.0,60419.0,0.011141]
[1723266519541,1.01531045,60420.0,60419.0,0.011141]
[1723266519997,0.90181045,60420.0,60419.0,0.011141]
[1723266520434,1.01531045,60420.0,60419.0,0.011141]
[1723266520675,0.98160587,60420.0,60419.0,0.011141]
[1723266521265,1.01518081,60420.0,60419.0,0.011141]
[1723266524101,1.01518318,60420.0,60419.0,0.011141]
[1723266524328,1.06485159,60420.0,60419.0,0.011141]
[1723266524766,1.01518318,60420.0,60419.0,0.011141]
[1723266525455,1.06485159,60420.0,60419.0,0.011141]
[1723266525760,1.01518318,60420.0,60419.0,0.011141]
[1723266526856,1.06485735,60420.0,60419.0,0.011141]
[1723266527096,1.01518318,60420.0,60419.0,0.011141]
[1723266527557,1.06485705,60420.0,60419.0,0.011141]
[1723266527794,1.01518318,60420.0,60419.0,0.011141]
[1723266528225,1.0151714,60420.0,60419.0,0.011141]
[1723266528454,1.06484879,60420.0,60419.0,0.011141]
[1723266528669,1.06484789,60420.0,60419.0,0.011141]
[1723266528907,1.43069731,60420.0,60419.0,0.011141]
[1723266529153,1.48228794,60420.0,60419.0,0.011141]
[1723266529390,1.42071052,60420.0,60419.0,0.011141]
[1723266530155,1.39781705,60420.0,60419.0,0.011141]
[1723266530626,1.40781705,60420.0,60419.0,0.011141]
[1723266531311,1.43072794,60420.0,60419.0,0.011141]
[1723266531774,1.40781292,60420.0,60419.0,0.011141]
[1723266532279,1.39780858,60420.0,60419.0,0.011141]
[1723266532500,1.34619711,60420.0,60419.0,0.011141]
[1723266532721,1.3661496,60420.0,60419.0,0.011141]
[1723266532941,1.35614227,60420.0,60419.0,0.011141]
[1723266533404,1.36614227,60420.0,60419.0,0.011141]
[1723266534073,1.43067126,60420.0,60419.0,0.011141]
[1723266534297,1.36614227,60420.0,60419.0,0.011141]
[1723266534945,1.35614227,60420.0,60419.0,0.011141]
[1723266535167,1.36614227,60420.0,60419.0,0.011141]
[1723266535380,1.35614227,60420.0,60419.0,0.011141]
[1723266535591,1.36614227,60420.0,60419.0,0.011141]
[1723266535807,1.33257436,60420.0,60419.0,0.011141]
[1723266536045,1.44065484,60420.0,60419.0,0.011141]
[1723266536276,1.35612709,60420.0,60419.0,0.011141]
[1723266537411,1.36612709,60420.0,60419.0,0.011141]
[1723266537652,1.40771815,60420.0,60419.0,0.011141]
[1723266537879,1.35612709,60420.0,60419.0,0.011141]
[1723266538054,1.36612709,60420.0,60419.0,0.011141]
[1723266538283,1.35612709,60420.0,60419.0,0.011141]
[1723266538936,1.36612709,60420.0,60419.0,0.011141]
[1723266539157,1.36612452,60420.0,60419.0,0.011141]
[1723266539385,1.35612452,60420.0,60419.0,0.011141]
[1723266539602,0.90165603,60420.0,60419.0,0.011141]
[1723266539822,1.01510937,60420.0,60419.0,0.011141]
[1723266540043,1.34612537,60420.0,60419.0,0.011141]
[1723266540261,1.34612432,60420.0,60419.0,0.011141]
[1723266540467,1.42065176,60420.0,60419.0,0.011141]
[1723266540686,1.34612432,60420.0,60419.0,0.011141]
[1723266540893,1.42065151,60420.0,60419.0,0.011141]
[1723266541154,1.01510832,60420.0,60419.0,0.011141]
[1723266541371,0.98160587,60420.0,60419.0,0.090441]
[1723266541597,1.01505225,60420.0,60419.0,0.090441]
[1723266542248,1.01494418,60420.0,60419.0,0.090441]
[1723266542906,0.04817031,60420.0,60419.0,0.94287577]
[1723266543120,0.014832,60420.0,60419.0,0.61185477]
[1723266543352,0.014832,60420.0,60419.0,0.62178699]
[1723266543569,0.014832,60420.0,60419.0,0.95280799]
[1723266543782,0.007832,60420.0,60419.0,0.62078699]
[1723266543990,0.002832,60420.0,60419.0,0.61978699]
[1723266544413,0.004832,60420.0,60419.0,0.61978699]
[1723266544622,0.002832,60420.0,60419.0,0.61978699]
[1723266544828,0.002832,60420.0,60419.0,0.95080799]
[1723266545035,0.000832,60420.0,60419.0,0.95480799]
[1723266545240,0.000832,60420.0,60419.0,0.95880799]
[1723266546518,0.000832,60420.0,60419.0,1.62084999]
[1723266546721,0.000832,60420.0,60419.0,1.95264887]
[1723266546927,0.000832,60420.0,60419.0,3.03980987]
[1723266547141,0.000832,60420.0,60419.0,3.2115509]
[1723266547349,0.000832,60420.0,60419.0,3.03980987]
[1723266547758,0.000832,60420.0,60419.0,3.03180987]
[1723266548182,0.000832,60420.0,60419.0,3.03580987]
[1723266548390,0.000832,60420.0,60419.0,3.54271497]
[1723266548597,0.000832,60420.0,60419.0,3.70580987]
[1723266548803,0.001832,60420.0,60419.0,3.8895427]
[1723266549216,0.000832,60420.0,60419.0,3.70580987]
[1723266549669,0.000832,60420.0,60419.0,3.82528447]
[1723266550107,0.001832,60420.0,60419.0,3.83928447]
[1723266550519,0.002832,60420.0,60419.0,3.72960701]
[1723266550731,0.002832,60420.0,60419.0,3.82850671]
[1723266550936,0.001832,60420.0,60419.0,3.81436734]
[1723266551164,0.002832,60420.0,60419.0,3.82836734]
[1723266551605,0.002832,60420.0,60419.0,3.72946764]
[1723266552654,0.002832,60420.0,60419.0,3.80359741]
[1723266552872,0.002832,60420.0,60419.0,3.80316347]
[1723266553297,0.002832,60420.0,60419.0,3.73449138]
[1723266553507,0.002832,60420.0,60419.0,3.80316321]
[1723266553730,0.002832,60420.0,60419.0,3.80315623]
[1723266553932,0.002832,60420.0,60419.0,3.76999623]
[1723266554314,0.002832,60420.0,60419.0,3.80315623]
[1723266554554,0.002832,60420.0,60419.0,3.66035463]
[1723266556471,0.002832,60420.0,60419.0,3.59064423]
[1723266556686,0.002832,60420.0,60419.0,3.42779182]
[1723266557522,0.002832,60420.0,60419.0,3.59064423]
[1723266557947,0.002832,60420.0,60419.0,3.42779182]
[1723266559875,0.002832,60420.0,60419.0,3.42777659]
[1723266561574,0.002832,60420.0,60419.0,3.42781013]
[1723266561950,0.1392,60438.0,60435.0,0.165465]
[1723266562148,0.1135,60437.0,60436.0,0.16381492]
[1723266562350,0.1135,60437.0,60436.0,0.17302531]
[1723266563893,0.1135,60437.0,60436.0,0.17902531]
[1723266564918,0.1145,60437.0,60436.0,0.18502531]
[1723266565371,0.001,60437.0,60436.0,0.68141731]
[1723266565581,0.001,60437.0,60436.0,0.35048931]
[1723266571532,0.001,60437.0,60436.0,0.48148863]
[1723266571815,0.001,60437.0,60436.0,0.31602463]
[1723266572022,0.1408,60437.0,60436.0,0.18502531]
[1723266572449,0.1408,60437.0,60436.0,0.3158217]
[1723266574800,0.1408,60437.0,60436.0,0.4812857]
[1723266575019,0.1408,60437.0,60436.0,0.3158217]
[1723266576286,0.16874243,60437.0,60436.0,0.3158217]
[1723266577351,0.09324243,60437.0,60436.0,0.3158217]
[1723266578002,0.09324243,60437.0,60436.0,0.3167358]
[1723266578189,0.09407343,60437.0,60436.0,0.3167358]
[1723266580997,0.066131,60437.0,60436.0,0.18593941]
[1723266581149,0.09407061,60437.0,60436.0,0.31679371]
[1723266581331,0.09407061,60437.0,60436.0,0.31679369]
[1723266581735,0.09407124,60437.0,60436.0,0.31679369]
[1723266588097,0.066131,60437.0,60436.0,0.18593941]
[1723266588297,0.09408427,60437.0,60436.0,0.31673667]
[1723266591771,0.066131,60437.0,60436.0,0.31673667]
[1723266591982,0.09408134,60437.0,60436.0,0.31673667]
[1723266592419,0.09407916,60437.0,60436.0,0.31674983]
[1723266592627,0.02977916,60437.0,60436.0,0.31674983]
[1723266595425,0.001831,60437.0,60436.0,0.3167123]
[1723266595636,0.02978576,60437.0,60436.0,0.3167123]
[1723266597964,0.02978576,60437.0,60436.0,0.8131043]
[1723266598160,0.001831,60437.0,60436.0,1.61997129]
[1723266598377,0.001831,60437.0,60436.0,2.62089929]
[1723266598599,0.001831,60437.0,60436.0,2.79259332]
[1723266599015,0.001831,60437.0,60436.0,2.88982814]
[1723266599219,0.001831,60437.0,60436.0,3.03876293]
[1723266599396,0.002831,60437.0,60436.0,3.75076293]
[1723266599672,0.002831,60437.0,60436.0,3.49833235]
[1723266600088,0.001831,60437.0,60436.0,3.49233235]
[1723266600485,0.002831,60437.0,60436.0,3.50433235]
[1723266601705,0.002831,60437.0,60436.0,3.50406778]
[1723266602106,0.002831,60437.0,60436.0,3.52495818]
[1723266602349,0.002831,60437.0,60436.0,3.35327371]
[1723266602721,0.002831,60437.0,60436.0,2.65327371]
[1723266603865,0.002831,60437.0,60436.0,2.63238663]
[1723266604276,0.002831,60437.0,60436.0,2.46987229]
[1723266604729,0.002831,60437.0,60436.0,2.59359355]
[1723266606290,0.002831,60437.0,60436.0,2.46987229]
[1723266606489,0.002831,60437.0,60436.0,3.16987229]
[1723266607365,0.002831,60437.0,60436.0,3.26880073]
[1723266608588,0.002831,60437.0,60436.0,3.13829043]
[1723266608793,0.002831,60437.0,60436.0,3.10124867]
[1723266612135,0.002831,60437.0,60436.0,3.10140259]
[1723266612749,0.002831,60437.0,60436.0,3.10138959]
[1723266613922,0.002831,60437.0,60436.0,3.10140103]
[1723266619200,0.002831,60437.0,60436.0,3.10133046]
[1723266620822,0.002831,60437.0,60436.0,3.17000922]
[1723266621230,0.002831,60437.0,60436.0,3.33265865]
[1723266621619,0.002831,60437.0,60436.0,3.43158709]
[1723266622398,0.002831,60437.0,60436.0,3.33265865]
[1723266622623,0.002831,60437.0,60436.0,3.26397989]
[1723266622828,0.002831,60437.0,60436.0,2.63265433]
[1723266623254,0.002831,60437.0,60436.0,2.63369942]
[1723266624377,0.002831,60437.0,60436.0,2.8053856]
[1723266625877,0.002831,60437.0,60436.0,3.5053856]
[1723266626250,0.002831,60437.0,60436.0,3.26498467]
[1723266626512,0.002831,60437.0,60436.0,3.50534556]
[1723266627789,0.002831,60437.0,60436.0,3.60423818]
[1723266628965,0.002831,60437.0,60436.0,3.06958003]
[1723266629164,0.002831,60437.0,60436.0,3.60474428]
[1723266629622,0.002831,60437.0,60436.0,3.50585166]
[1723266630258,0.002831,60437.0,60436.0,3.95867228]
[1723266631891,0.002831,60437.0,60436.0,3.96190964]
[1723266632471,0.002831,60437.0,60436.0,3.96651168]
[1723266633112,0.002831,60437.0,60436.0,3.43134743]
[1723266633325,0.002831,60437.0,60436.0,3.79532033]
[1723266633518,0.002831,60437.0,60436.0,3.96674529]
[1723266633725,0.002831,60437.0,60436.0,3.50002039]
[1723266633939,0.002831,60437.0,60436.0,3.96670173]
[1723266635113,0.002831,60437.0,60436.0,3.96672266]
[1723266636929,0.002831,60437.0,60436.0,3.96662107]
[1723266638573,0.002831,60437.0,60436.0,3.79493921]
[1723266638798,0.002831,60437.0,60436.0,3.96662107]
[1723266640204,0.002831,60437.0,60436.0,3.82212107]
[1723266640384,0.002831,60437.0,60436.0,3.82166342]
[1723266641923,0.002831,60437.0,60436.0,3.82141826]
[1723266642138,0.002831,60437.0,60436.0,3.97441826]
[1723266642365,0.002831,60437.0,60436.0,3.96441826]
[1723266642575,0.002831,60437.0,60436.0,4.11299088]
[1723266643211,0.002831,60437.0,60436.0,4.11312763]
[1723266643685,0.002831,60437.0,60436.0,3.96441826]
[1723266644092,0.002831,60437.0,60436.0,3.96541038]
[1723266644701,0.002831,60437.0,60436.0,3.96541519]
[1723266645973,0.002831,60437.0,60436.0,3.96541409]
[1723266647955,0.002831,60437.0,60436.0,3.67020279]
[1723266648091,0.002831,60437.0,60436.0,3.96532112]
[1723266650986,0.002831,60437.0,60436.0,3.72496576]
[1723266651198,0.002831,60437.0,60436.0,3.96532036]
[1723266651803,0.001831,60437.0,60436.0,3.95332036]
[1723266652005,0.002831,60437.0,60436.0,3.96732036]
[1723266652334,0.001831,60437.0,60436.0,3.95332036]
[1723266652561,0.001831,60437.0,60436.0,3.95532036]
[1723266652882,0.001831,60437.0,60436.0,3.96932036]
[1723266653287,0.001831,60437.0,60436.0,3.95532036]
[1723266653694,0.001831,60437.0,60436.0,3.96932036]
[1723266654570,0.001831,60437.0,60436.0,3.96932711]
[1723266654979,0.001831,60437.0,60436.0,3.7287698]
[1723266655190,0.001831,60437.0,60436.0,3.9691244]
[1723266655956,0.001831,60437.0,60436.0,3.9083244]
[1723266656385,0.001831,60437.0,60436.0,3.8261244]
[1723266658032,0.001831,60437.0,60436.0,3.46252928]
[1723266658237,0.001831,60437.0,60436.0,3.82635412]
[1723266659166,0.001831,60437.0,60436.0,3.80335413]
[1723266659370,0.144631,60437.0,60436.0,2.82149813]
[1723266659569,0.144631,60437.0,60436.0,2.26800347]
[1723266659759,0.144631,60437.0,60436.0,2.22037062]
[1723266660345,0.258131,60437.0,60436.0,2.29481335]
[1723266660559,0.258131,60437.0,60436.0,2.01364887]
[1723266660761,0.257131,60437.0,60436.0,2.01264887]
[1723266661111,0.257131,60437.0,60436.0,2.02664887]
[1723266661692,0.257131,60437.0,60436.0,1.86308028]
[1723266662280,0.257131,60437.0,60436.0,1.16308028]
[1723266662756,0.753515,60437.0,60436.0,0.17194536]
[1723266663142,0.78125592,60437.0,60436.0,0.17194536]
[1723266663464,0.061131,60437.0,60436.0,1.15018729]
[1723266663667,0.061131,60437.0,60436.0,1.48111529]
[1723266663864,0.061131,60437.0,60436.0,1.71553367]
[1723266664073,0.061131,60437.0,60436.0,2.41553367]
[1723266664345,0.000831,60437.0,60436.0,2.41485078]
[1723266664533,0.000831,60437.0,60436.0,2.51095211]
[1723266664763,0.003831,60437.0,60436.0,2.51095211]
[1723266664884,0.000831,60437.0,60436.0,2.51095211]
[1723266665295,0.000831,60437.0,60436.0,2.52195211]
[1723266665498,0.000831,60437.0,60436.0,2.50895211]
[1723266665891,0.000831,60437.0,60436.0,2.52195211]
[1723266666093,0.000831,60437.0,60436.0,2.50895211]
[1723266666560,0.000831,60437.0,60436.0,2.52095211]
[1723266666899,0.000831,60437.0,60436.0,2.50895211]
[1723266667321,0.083331,60437.0,60436.0,2.26436788]
[1723266667529,0.145031,60437.0,60436.0,1.95795168]
[1723266667760,0.145031,60437.0,60436.0,1.97095168]
[1723266668163,0.145031,60437.0,60436.0,1.25795168]
[1723266668363,0.145031,60437.0,60436.0,1.27095168]
[1723266668762,0.145031,60437.0,60436.0,1.25895168]
[1723266669220,0.145031,60437.0,60436.0,1.27095168]
[1723266670792,0.145031,60437.0,60436.0,1.27059766]
[1723266674254,0.145031,60437.0,60436.0,1.1395981]
[1723266674431,0.145031,60437.0,60436.0,1.27052708]
[1723266674882,0.145031,60437.0,60436.0,1.27046651]
[1723266676072,0.145031,60437.0,60436.0,1.27051262]
[1723266676857,0.145031,60437.0,60436.0,1.60144062]
[1723266677456,0.000831,60437.0,60436.0,1.60144062]
[1723266677919,0.000831,60437.0,60436.0,1.67581986]
[1723266678104,0.000831,60437.0,60436.0,1.74449945]
[1723266678308,0.000831,60437.0,60436.0,1.90746778]
[1723266678503,0.000831,60437.0,60436.0,1.74449945]
[1723266678705,0.000831,60437.0,60436.0,1.90746778]
[1723266679032,0.000831,60437.0,60436.0,1.74449945]
[1723266679318,0.000831,60437.0,60436.0,1.90746778]
[1723266679533,0.000831,60437.0,60436.0,1.74449945]
[1723266679744,0.146031,60437.0,60436.0,1.6014578]
[1723266681375,0.146031,60437.0,60436.0,1.6011657]
[1723266683759,0.146031,60437.0,60436.0,1.1702377]
[1723266684019,0.146031,60437.0,60436.0,0.82920837]
[1723266684604,0.146031,60437.0,60436.0,1.16013637]
[1723266684999,0.146031,60437.0,60436.0,1.15974465]
[1723266685202,0.146031,60437.0,60436.0,1.1597446]
[1723266688131,0.000831,60437.0,60436.0,1.1597446]
[1723266690725,0.000831,60437.0,60436.0,1.8597446]
[1723266691266,0.256531,60437.0,60436.0,1.8597446]
[1723266691840,0.256531,60437.0,60436.0,1.1597446]
[1723266692683,0.256531,60437.0,60436.0,1.1599039]
[1723266696412,0.256531,60437.0,60436.0,1.15820101]
[1723266696781,0.256531,60437.0,60436.0,1.15817378]
[1723266697701,0.000831,60437.0,60436.0,1.15817378]
[1723266698505,0.000831,60437.0,60436.0,1.32062083]
[1723266700843,0.000831,60437.0,60436.0,1.65154883]
[1723266701247,0.000831,60437.0,60436.0,1.72023117]
[1723266701869,0.000831,60437.0,60436.0,1.42740351]
[1723266702074,0.000831,60437.0,60436.0,2.4206816]
[1723266702528,0.000831,60437.0,60436.0,4.1248917]
[1723266702726,0.000831,60443.0,60442.0,0.968837]
[1723266702927,0.000831,60443.0,60442.0,3.44672446]
[1723266703174,0.000831,60443.0,60442.0,3.32035895]
[1723266703298,0.000831,60443.0,60442.0,2.8099448]
[1723266703502,0.000831,60443.0,60442.0,3.50165685]
[1723266703745,0.000831,60443.0,60442.0,3.39142156]
[1723266703941,0.000831,60443.0,60442.0,3.34315653]
[1723266704479,0.000831,60443.0,60442.0,3.49167761]
[1723266704636,0.000831,60443.0,60442.0,3.50567761]
[1723266704814,0.000831,60443.0,60442.0,3.51867761]
[1723266705233,0.000831,60443.0,60442.0,3.35715653]
[1723266705544,0.000831,60443.0,60442.0,3.52932993]
[1723266705745,0.000831,60443.0,60442.0,4.22932993]
[1723266706549,0.000831,60443.0,60442.0,4.08085277]
[1723266706953,0.000831,60443.0,60442.0,4.08171145]
[1723266707351,0.000831,60443.0,60442.0,3.97807844]
[1723266707755,0.000831,60454.0,60453.0,1.157922]
[1723266707943,0.000831,60454.0,60453.0,2.92846312]
[1723266708195,0.000831,60454.0,60453.0,3.6082804]
[1723266708393,0.000831,60454.0,60453.0,3.65647053]
[1723266708596,0.000831,60463.0,60462.0,1.157751]
[1723266708870,0.000831,60463.0,60462.0,1.60720381]
[1723266710219,0.000831,60463.0,60462.0,1.61420381]
[1723266710419,0.000831,60463.0,60462.0,1.61381516]
[1723266711007,0.000831,60463.0,60462.0,1.62081516]
[1723266711208,0.000831,60463.0,60462.0,2.32081516]
[1723266711921,0.000831,60463.0,60462.0,2.36908019]
[1723266712564,0.000831,60463.0,60462.0,2.32081516]
[1723266712743,0.000831,60463.0,60462.0,2.98381516]
[1723266712950,0.000831,60463.0,60462.0,3.34776116]
[1723266713225,0.000831,60463.0,60462.0,3.44776116]
[1723266713426,0.000831,60463.0,60462.0,3.4507154]
[1723266713585,0.000831,60463.0,60462.0,3.4557154]
[1723266713788,0.000831,60463.0,60462.0,3.45609688]
[1723266713987,0.000831,60463.0,60462.0,3.44409688]
[1723266714445,0.000831,60463.0,60462.0,3.45809688]
[1723266715029,0.000831,60463.0,60462.0,3.47209688]
[1723266715227,0.000831,60463.0,60462.0,3.45809688]
[1723266716053,0.000831,60463.0,60462.0,3.47209688]
[1723266716250,0.000831,60463.0,60462.0,3.81288288]
[1723266716428,0.000831,60472.0,60471.0,1.157579]
[1723266716768,0.000831,60472.0,60471.0,3.47276808]
[1723266717183,0.000831,60472.0,60471.0,3.53726808]
[1723266717504,0.000831,60472.0,60471.0,3.53713633]
[1723266717620,0.000831,60472.0,60471.0,3.56013633]
[1723266717816,0.000831,60472.0,60471.0,3.56012947]
[1723266718015,0.000831,60472.0,60471.0,4.23012947]
[1723266718223,0.000831,60472.0,60471.0,4.24412947]
[1723266718877,0.000831,60472.0,60471.0,4.24403005]
[1723266719278,0.000831,60472.0,60471.0,4.25803005]
[1723266719823,0.000831,60472.0,60471.0,4.14453005]
[1723266720385,0.000831,60472.0,60471.0,4.08967059]
[1723266720585,0.000831,60472.0,60471.0,3.95899739]
[1723266720787,0.000831,60472.0,60471.0,4.089773]
[1723266723028,0.000831,60472.0,60471.0,3.389773]
[1723266724400,0.000831,60472.0,60471.0,3.311873]
[1723266725061,0.000831,60472.0,60471.0,3.297873]
[1723266725361,0.000831,60472.0,60471.0,3.311873]
[1723266725867,0.000831,60472.0,60471.0,3.283873]